bitfinex-derivatives/quotes_BTCF0:USTF0_20241110
["timestamp","ask_amount","ask_price","bid_price","bid_amount"]
[1731219202490,0.82374799,79295.0,79286.0,0.05045026]
[1731219202696,0.50622799,79287.0,79286.0,0.05045026]
[1731219204094,0.57023171,79287.0,79286.0,0.05045026]
[1731219204600,0.20943171,79287.0,79286.0,0.05045026]
[1731219206701,0.06400372,79287.0,79286.0,0.05045026]
[1731219207006,0.36091639,79297.0,79286.0,0.05045026]
[1731219207203,0.00011639,79297.0,79296.0,0.3608]
[1731219207394,0.00011639,79297.0,79293.0,0.14542799]
[1731219207703,0.00011639,79297.0,79293.0,0.12242799]
[1731219208704,0.00011639,79297.0,79296.0,0.3608]
[1731219208999,0.00011639,79297.0,79294.0,0.14542799]
[1731219209991,0.00011639,79297.0,79295.0,0.36845061]
[1731219214006,0.00011639,79297.0,79296.0,0.3608]
[1731219215503,0.00011639,79297.0,79296.0,0.36845061]
[1731219215700,0.00011639,79297.0,79296.0,0.72925061]
[1731219216103,0.00011639,79297.0,79296.0,0.36845061]
[1731219216303,0.00011639,79297.0,79296.0,0.72925061]
[1731219217203,0.00011639,79297.0,79296.0,0.36845061]
[1731219217601,0.02448292,79297.0,79296.0,0.36845061]
[1731219217804,0.82386438,79297.0,79287.0,0.00084]
[1731219218114,0.3608,79288.0,79280.0,0.00189182]
[1731219218806,0.3608,79292.0,79280.0,0.36269182]
[1731219219006,0.3608,79292.0,79280.0,0.3608]
[1731219219206,0.14542799,79290.0,79280.0,0.3608]
[1731219219400,0.3608,79292.0,79280.0,0.3608]
[1731219219801,0.3608,79292.0,79276.0,0.05045663]
[1731219219999,0.55468514,79291.0,79276.0,0.05045663]
[1731219220202,0.52378799,79291.0,79276.0,0.05045663]
[1731219220410,0.40925815,79290.0,79276.0,0.05045663]
[1731219220610,0.03089815,79289.0,79276.0,0.05045663]
[1731219220809,0.03089981,79288.0,79276.0,0.05045663]
[1731219221113,0.3608,79278.0,79276.0,0.05045663]
[1731219221905,0.7392,79278.0,79276.0,0.05045663]
[1731219222209,0.7392,79277.0,79276.0,0.05045663]
[1731219222712,0.7392,79277.0,79276.0,0.02745663]
[1731219223106,1.0392,79277.0,79254.0,0.2193]
[1731219223306,0.50622799,79271.0,79247.0,0.36845061]
[1731219223507,0.3608,79256.0,79248.0,0.36845061]
[1731219224008,0.50622799,79264.0,79248.0,0.36845061]
[1731219224214,0.14581174,79260.0,79248.0,0.36845061]
[1731219224417,0.14581174,79260.0,79250.0,0.00011067]
[1731219224812,0.14581174,79260.0,79253.0,0.3608]
[1731219225210,0.3608,79271.0,79254.0,0.14581174]
[1731219225610,0.3608,79271.0,79253.0,0.3608]
[1731219225611,0.14581174,79269.0,79253.0,0.3608]
[1731219225813,0.14581174,79261.0,79250.0,0.00011067]
[1731219226008,0.14581174,79261.0,79254.0,0.3608]
[1731219226204,0.3608,79258.0,79250.0,0.00011067]
[1731219227311,0.3608,79258.0,79256.0,0.36845061]
[1731219227511,0.14581174,79261.0,79256.0,0.36845061]
[1731219228516,0.14581174,79269.0,79258.0,0.3608]
[1731219228719,0.14581174,79269.0,79256.0,0.36845061]
[1731219229117,0.14581174,79263.0,79256.0,0.36845061]
[1731219229328,0.14581174,79269.0,79256.0,0.36845061]
[1731219229716,0.06366258,79271.0,79260.0,0.3608]
[1731219230017,0.00189314,79272.0,79265.0,0.00519466]
[1731219230512,0.3608,79268.0,79266.0,0.203]
[1731219230910,0.00189314,79272.0,79266.0,0.203]
[1731219231119,0.00189314,79272.0,79267.0,0.00519466]
[1731219231120,0.06464074,79272.0,79267.0,0.00519466]
[1731219231325,0.00189314,79272.0,79267.0,0.00519466]
[1731219232020,0.00029314,79272.0,79269.0,0.00519466]
[1731219233122,0.00029314,79272.0,79270.0,0.00519466]
[1731219233919,0.02526071,79271.0,79270.0,0.00519466]
[1731219234114,0.76450071,79271.0,79270.0,0.00519466]
[1731219234323,0.76450071,79271.0,79261.0,0.36845061]
[1731219234528,0.3608,79262.0,79261.0,0.36845061]
[1731219236028,0.14581174,79252.0,79239.0,0.16996]
[1731219236322,0.3608,79251.0,79239.0,0.16996]
[1731219236513,0.50661174,79240.0,79238.0,0.212]
[1731219237120,0.3608,79239.0,79238.0,0.212]
[1731219237318,0.3608,79239.0,79235.0,0.47511955]
[1731219237528,0.3608,79239.0,79235.0,0.47423955]
[1731219238119,0.3608,79237.0,79235.0,0.47423955]
[1731219238515,0.3786,79236.0,79235.0,0.47423955]
[1731219238716,0.3786,79236.0,79225.0,0.20682777]
[1731219238926,0.3608,79237.0,79225.0,0.20682777]
[1731219238927,0.14581174,79226.0,79225.0,0.20682777]
[1731219239925,0.14581174,79226.0,79225.0,0.00012777]
[1731219240127,0.50661174,79226.0,79225.0,0.00012777]
[1731219240926,0.57064217,79226.0,79225.0,0.00012777]
[1731219241228,0.57064217,79226.0,79225.0,0.00186006]
[1731219245131,0.06403043,79226.0,79225.0,0.00186006]
[1731219245328,0.3608,79237.0,79225.0,0.00186006]
[1731219245626,0.3608,79237.0,79226.0,0.2249]
[1731219246533,0.06336376,79238.0,79231.0,0.00173229]
[1731219246727,0.0191101,79240.0,79233.0,0.3608]
[1731219246931,0.0191101,79240.0,79237.0,0.3608]
[1731219247434,0.0191101,79240.0,79238.0,0.00173229]
[1731219247630,0.08345316,79240.0,79239.0,0.00341296]
[1731219247934,0.0191101,79240.0,79239.0,0.00341296]
[1731219249025,0.0001501,79240.0,79239.0,0.00341296]
[1731219250428,0.0001501,79240.0,79239.0,0.36421296]
[1731219252422,0.0001501,79240.0,79239.0,0.34121296]
[1731219252829,0.0001501,79240.0,79237.0,0.47511955]
[1731219253032,0.0001501,79240.0,79239.0,0.3608]
[1731219259830,0.0001501,79240.0,79239.0,0.50661174]
[1731219260138,0.3608,79261.0,79239.0,1.71796319]
[1731219260445,0.01896,79268.0,79256.0,0.3608]
[1731219260643,0.01896,79268.0,79257.0,0.2098]
[1731219260939,9.699e-05,79267.0,79257.0,0.2098]
[1731219261741,9.699e-05,79267.0,79264.0,0.3608]
[1731219262428,9.699e-05,79267.0,79265.0,0.16892]
[1731219265540,9.699e-05,79267.0,79266.0,0.16892]
[1731219267143,9.699e-05,79267.0,79266.0,0.21938299]
[1731219267341,9.699e-05,79267.0,79266.0,0.02746299]
[1731219268243,0.36089699,79267.0,79266.0,0.02746299]
[1731219268947,0.42464684,79267.0,79266.0,0.02746299]
[1731219269347,0.36089699,79267.0,79266.0,0.02746299]
[1731219273445,0.34031599,79267.0,79266.0,0.40594299]
[1731219273747,0.3608,79280.0,79266.0,0.59473633]
[1731219273953,0.3608,79280.0,79267.0,0.2153]
[1731219274652,0.3608,79280.0,79272.0,0.14581174]
[1731219274653,0.36091995,79280.0,79272.0,0.14581174]
[1731219274855,0.36091995,79280.0,79273.0,0.37438]
[1731219275054,0.36091995,79280.0,79273.0,0.56463318]
[1731219275254,0.00011995,79280.0,79278.0,0.3608]
[1731219275554,0.00011995,79280.0,79273.0,0.51752]
[1731219275748,0.00011995,79280.0,79273.0,0.51688]
[1731219275953,0.00011995,79280.0,79274.0,0.18856267]
[1731219276943,0.3608,79279.0,79274.0,0.18856267]
[1731219280254,0.5756,79279.0,79274.0,0.18856267]
[1731219280958,0.5756,79279.0,79273.0,0.16888]
[1731219282057,0.5756,79279.0,79276.0,0.00173143]
[1731219282555,0.5756,79279.0,79273.0,0.14761143]
[1731219287061,0.3608,79279.0,79273.0,0.14761143]
[1731219288962,0.14581174,79274.0,79273.0,0.14761143]
[1731219289353,0.14581174,79274.0,79268.0,0.00010603]
[1731219289559,0.3608,79269.0,79268.0,0.00010603]
[1731219289759,0.3608,79269.0,79251.0,0.20596211]
[1731219289957,0.3608,79252.0,79251.0,0.06346211]
[1731219290358,0.7948,79252.0,79251.0,0.06346211]
[1731219290554,0.7948,79252.0,79240.0,0.00189302]
[1731219290768,0.3608,79241.0,79240.0,0.00189302]
[1731219291067,0.3608,79241.0,79240.0,0.25202649]
[1731219291268,0.3608,79241.0,79240.0,0.19039483]
[1731219294255,0.3608,79241.0,79240.0,0.35823483]
[1731219294864,0.57984,79252.0,79240.0,0.71903483]
[1731219295070,0.3608,79245.0,79240.0,0.35823483]
[1731219297064,0.57992,79252.0,79240.0,0.35823483]
[1731219297569,0.57992,79252.0,79242.0,0.3378]
[1731219297570,0.5792,79252.0,79242.0,0.3378]
[1731219297961,0.5792,79252.0,79240.0,0.16985769]
[1731219298366,0.5792,79252.0,79241.0,0.19026875]
[1731219298567,0.3608,79245.0,79241.0,0.19026875]
[1731219298772,0.2184,79252.0,79241.0,0.19026875]
[1731219298773,0.3608,79242.0,79241.0,0.19026875]
[1731219299866,0.2184,79252.0,79241.0,0.55106875]
[1731219300167,0.3608,79253.0,79249.0,0.14581174]
[1731219300472,0.3608,79253.0,79250.0,0.18939397]
[1731219300768,0.0623372,79260.0,79242.0,0.18939397]
[1731219300974,0.3608,79250.0,79242.0,0.18939397]
[1731219301164,0.3608,79250.0,79240.0,0.16985769]
[1731219301165,0.14581174,79248.0,79240.0,0.16985769]
[1731219301367,0.3608,79241.0,79240.0,0.16985769]
[1731219301769,0.3608,79241.0,79240.0,0.358351]
[1731219302077,0.435,79249.0,79240.0,0.358351]
[1731219302470,0.3608,79250.0,79240.0,0.358351]
[1731219303065,0.3608,79250.0,79240.0,0.50416274]
[1731219303266,0.3608,79250.0,79246.0,0.14581174]
[1731219303673,0.4251,79260.0,79247.0,0.18839141]
[1731219304079,0.4251,79260.0,79247.0,0.18829141]
[1731219305171,0.4251,79260.0,79247.0,0.18819141]
[1731219306173,0.4251,79260.0,79247.0,0.18809141]
[1731219307073,0.4251,79260.0,79247.0,0.25170586]
[1731219308679,0.3608,79254.0,79247.0,0.25170586]
[1731219310982,0.3608,79254.0,79248.0,0.16784]
[1731219311477,0.3608,79254.0,79249.0,0.18881017]
[1731219312379,0.4251,79260.0,79249.0,0.16581017]
[1731219312587,0.03090392,79259.0,79249.0,0.16581017]
[1731219312792,0.03090392,79258.0,79249.0,0.16581017]
[1731219312979,0.3608,79251.0,79249.0,0.16581017]
[1731219318689,0.3608,79251.0,79246.0,0.16784]
[1731219318690,0.4055,79250.0,79246.0,0.16784]
[1731219318984,0.6114,79250.0,79246.0,0.16784]
[1731219319579,0.03090853,79249.0,79246.0,0.16784]
[1731219319784,0.6114,79250.0,79246.0,0.16784]
[1731219319983,0.03090962,79249.0,79246.0,0.16784]
[1731219320293,0.6114,79250.0,79246.0,0.16784]
[1731219320481,0.03090969,79249.0,79246.0,0.16784]
[1731219320787,0.03090971,79248.0,79246.0,0.16784]
[1731219320982,0.6114,79250.0,79246.0,0.16784]
[1731219321183,0.03090971,79249.0,79246.0,0.16784]
[1731219321486,0.02525818,79262.0,79247.0,0.18886718]
[1731219321699,0.44110489,79261.0,79250.0,0.3608]
[1731219321881,0.03090489,79260.0,79247.0,0.18886718]
[1731219322081,0.03090489,79259.0,79246.0,0.31360741]
[1731219322281,0.03090489,79258.0,79250.0,0.3608]
[1731219322485,0.3608,79251.0,79250.0,0.16672]
[1731219323791,0.3608,79251.0,79242.0,0.1425]
[1731219323792,0.39170718,79251.0,79248.0,0.16672]
[1731219324094,0.24340718,79250.0,79248.0,0.16672]
[1731219324290,0.03090718,79249.0,79248.0,0.16672]
[1731219324506,0.2125,79250.0,79248.0,0.16672]
[1731219326187,0.3608,79251.0,79248.0,0.16672]
[1731219327488,0.3608,79251.0,79248.0,0.14372]
[1731219330487,0.3608,79251.0,79249.0,0.16672]
[1731219330801,0.3608,79251.0,79242.0,0.18959573]
[1731219330802,0.03090736,79250.0,79242.0,0.18959573]
[1731219330997,0.50656741,79243.0,79242.0,0.18959573]
[1731219331298,0.50656741,79243.0,79241.0,0.20433394]
[1731219331299,0.3608,79243.0,79241.0,0.20433394]
[1731219331493,0.3456,79242.0,79241.0,0.20433394]
[1731219331694,0.5149,79242.0,79241.0,0.20433394]
[1731219332294,0.54581036,79242.0,79241.0,0.20433394]
[1731219332605,0.5149,79242.0,79241.0,0.20433394]
[1731219333304,0.3399,79242.0,79241.0,0.1425]
[1731219333601,0.1706,79242.0,79241.0,0.1425]
[1731219333992,0.1706,79242.0,79237.0,0.16672]
[1731219333993,0.1706,79242.0,79240.0,0.06371308]
[1731219334196,0.1706,79242.0,79240.0,0.00012467]
[1731219335797,0.03091016,79241.0,79240.0,0.00012467]
[1731219336098,0.1706,79242.0,79240.0,0.00012467]
[1731219342612,0.1706,79242.0,79235.0,0.14384467]
[1731219343305,0.1706,79242.0,79235.0,0.50464467]
[1731219343501,0.1706,79242.0,79235.0,0.14384467]
[1731219343701,0.1706,79242.0,79236.0,0.00013115]
[1731219345307,0.14689874,79237.0,79236.0,0.00013115]
[1731219345803,0.17781367,79237.0,79236.0,0.00013115]
[1731219346399,0.14689874,79237.0,79236.0,0.00013115]
[1731219347806,0.1706,79242.0,79236.0,0.00013115]
[1731219348012,0.03091462,79241.0,79236.0,0.00013115]
[1731219348310,0.03091334,79240.0,79236.0,0.00013115]
[1731219348506,0.03091333,79239.0,79236.0,0.00013115]
[1731219348704,0.20601333,79238.0,79236.0,0.00013115]
[1731219348899,0.1751,79238.0,79236.0,0.00013115]
[1731219354915,0.03091265,79237.0,79236.0,0.00013115]
[1731219356718,0.03091265,79237.0,79232.0,0.00189283]
[1731219356719,0.44840427,79237.0,79232.0,0.00189283]
[1731219356921,0.3608,79233.0,79232.0,0.00189283]
[1731219357112,0.43046907,79233.0,79232.0,0.00189283]
[1731219357312,0.43046907,79233.0,79214.0,0.37695178]
[1731219357619,0.3608,79220.0,79214.0,0.37695178]
[1731219357817,0.03091687,79219.0,79215.0,0.00014185]
[1731219358413,0.3608,79220.0,79215.0,0.00014185]
[1731219360727,0.03091847,79219.0,79215.0,0.00014185]
[1731219361022,0.03091997,79218.0,79215.0,0.16586185]
[1731219361219,0.3608,79220.0,79215.0,0.00014185]
[1731219361420,0.03092019,79219.0,79215.0,0.00014185]
[1731219361622,0.03092019,79218.0,79215.0,0.00014185]
[1731219361917,0.03092019,79217.0,79215.0,0.00014185]
[1731219362111,0.03092019,79216.0,79215.0,0.00014185]
[1731219362312,0.03092019,79219.0,79215.0,0.00014185]
[1731219362519,0.03092019,79218.0,79215.0,0.00014185]
[1731219362820,0.03092019,79217.0,79215.0,0.00014185]
[1731219363026,0.03092019,79216.0,79215.0,0.00014185]
[1731219363214,0.3608,79224.0,79216.0,0.18908893]
[1731219363415,0.3608,79224.0,79219.0,0.14689874]
[1731219363611,0.3608,79224.0,79220.0,0.47642]
[1731219363812,0.3608,79224.0,79220.0,0.66550893]
[1731219366323,0.3608,79224.0,79221.0,0.16572]
[1731219367221,0.14689874,79223.0,79215.0,0.06261205]
[1731219367427,0.3608,79216.0,79215.0,0.06261205]
[1731219368125,0.3608,79216.0,79215.0,0.00014185]
[1731219371224,0.39171987,79216.0,79215.0,0.00014185]
[1731219371735,0.3608,79216.0,79215.0,0.00014185]
[1731219372523,0.3608,79216.0,79211.0,0.14286185]
[1731219373424,0.3608,79216.0,79212.0,0.0001372]
[1731219377126,0.3608,79216.0,79212.0,0.1658572]
[1731219377930,0.3608,79216.0,79213.0,0.35397675]
[1731219379629,0.3608,79216.0,79213.0,0.18825675]
[1731219379837,0.3608,79216.0,79214.0,0.16572]
[1731219381636,0.3608,79216.0,79212.0,0.0001372]
[1731219381834,0.3608,79216.0,79213.0,0.1646]
[1731219382136,0.3608,79216.0,79212.0,0.1647372]
[1731219382731,0.3608,79213.0,79212.0,0.0001372]
[1731219385036,0.39172276,79213.0,79212.0,0.0001372]
[1731219385237,0.3608,79213.0,79212.0,0.0001372]
[1731219385432,0.39172268,79213.0,79212.0,0.00186886]
[1731219386043,0.3608,79213.0,79212.0,0.00186886]
[1731219386342,0.39172249,79213.0,79212.0,0.00186886]
[1731219387441,0.39172249,79213.0,79205.0,0.14346886]
[1731219387632,0.3608,79206.0,79205.0,0.14346886]
[1731219388438,0.3608,79206.0,79205.0,0.14361924]
[1731219389034,0.39172541,79206.0,79205.0,0.14361924]
[1731219389240,0.3608,79206.0,79205.0,0.14361924]
[1731219392637,0.3608,79206.0,79205.0,0.33193438]
[1731219394542,0.3608,79206.0,79205.0,0.18846552]
[1731219394745,0.50769874,79206.0,79205.0,0.00015038]
[1731219396850,0.50769874,79206.0,79205.0,0.00188204]
[1731219397239,0.88645874,79206.0,79205.0,0.00188204]
[1731219398138,0.50769874,79206.0,79205.0,0.00188204]
[1731219399138,0.90541874,79206.0,79205.0,0.00188204]
[1731219400141,0.90541874,79206.0,79183.0,0.14689874]
[1731219400142,0.90541874,79206.0,79183.0,0.1425]
[1731219400349,0.3608,79188.0,79183.0,0.14689874]
[1731219400649,0.3608,79197.0,79187.0,0.19117104]
[1731219400947,0.3608,79189.0,79187.0,0.19117104]
[1731219401248,0.3608,79189.0,79188.0,0.00012079]
[1731219401543,0.36091583,79189.0,79188.0,0.00012079]
[1731219401746,0.36091583,79189.0,79167.0,0.16464]
[1731219401948,0.3608,79171.0,79167.0,0.16464]
[1731219402142,0.3608,79171.0,79168.0,0.18950645]
[1731219402649,0.3608,79171.0,79169.0,0.00168066]
[1731219402848,0.3608,79171.0,79169.0,0.16632066]
[1731219403044,0.3608,79171.0,79169.0,0.14332066]
[1731219404139,0.3608,79171.0,79170.0,0.14689874]
[1731219404845,0.3608,79177.0,79170.0,0.14689874]
[1731219405051,0.3608,79177.0,79176.0,0.14689874]
[1731219405439,0.3608,79177.0,79176.0,0.3548972]
[1731219406039,0.3608,79177.0,79173.0,0.16468]
[1731219407741,0.14689874,79174.0,79173.0,0.16468]
[1731219407950,0.3608,79177.0,79173.0,0.16468]
[1731219408453,0.7216,79177.0,79173.0,0.16468]
[1731219411053,0.7216,79177.0,79168.0,0.16481656]
[1731219411760,0.3608,79169.0,79168.0,0.16481656]
[1731219413853,0.3608,79169.0,79168.0,0.00013656]
[1731219416448,0.3608,79169.0,79168.0,0.05066202]
[1731219417756,0.3608,79169.0,79156.0,0.16364]
[1731219417956,0.3608,79169.0,79140.0,0.1628]
[1731219417957,0.3608,79157.0,79140.0,0.1628]
[1731219418159,0.14689874,79151.0,79147.0,0.16364]
[1731219418351,0.14689874,79151.0,79148.0,0.06339796]
[1731219418754,0.14689874,79151.0,79150.0,0.0020083]
[1731219419766,0.14689874,79151.0,79150.0,0.00011347]
[1731219419957,0.14689874,79152.0,79150.0,0.00011347]
[1731219420951,0.37904,79151.0,79107.0,0.3608]
[1731219421167,0.3608,79124.0,79117.0,0.1668]
[1731219421855,0.3608,79124.0,79121.0,0.06506591]
[1731219422052,0.3608,79124.0,79122.0,0.00011534]
[1731219422555,0.01896,79123.0,79122.0,0.00011534]
[1731219422962,0.3608,79124.0,79122.0,0.00011534]
[1731219423161,0.42348308,79124.0,79122.0,0.00011534]
[1731219423558,0.3608,79124.0,79122.0,0.00011534]
[1731219425273,0.3608,79124.0,79123.0,0.19023698]
[1731219425473,0.00012415,79130.0,79123.0,0.55103698]
[1731219425677,0.00012415,79130.0,79129.0,0.14689874]
[1731219425972,0.00012415,79130.0,79129.0,0.31061874]
[1731219426160,0.00012415,79130.0,79129.0,0.50105081]
[1731219426472,0.00012415,79130.0,79129.0,0.35415207]
[1731219426774,0.00012415,79130.0,79129.0,0.16372]
[1731219427571,0.3608,79134.0,79129.0,0.49587747]
[1731219427772,0.3608,79142.0,79129.0,1.08540764]
[1731219427972,0.3608,79142.0,79130.0,0.1425]
[1731219428270,0.3608,79154.0,79135.0,0.14689874]
[1731219428477,0.3608,79142.0,79136.0,0.3257]
[1731219428664,0.3608,79142.0,79136.0,0.67870048]
[1731219429067,0.36094434,79154.0,79136.0,0.67870048]
[1731219429776,0.36094434,79154.0,79147.0,0.14689874]
[1731219429962,0.36094434,79154.0,79148.0,0.16372]
[1731219430170,0.36094434,79154.0,79148.0,0.35212931]
[1731219430668,0.36094434,79154.0,79149.0,0.16372]
[1731219431071,0.36094434,79154.0,79150.0,0.19031494]
[1731219432781,0.36094434,79154.0,79150.0,0.16731494]
[1731219433981,0.36094434,79154.0,79151.0,0.16372]
[1731219434287,0.14689874,79152.0,79136.0,0.00064]
[1731219434480,0.3608,79137.0,79126.0,0.06369022]
[1731219434777,0.3608,79137.0,79136.0,0.14689874]
[1731219434965,0.3608,79147.0,79136.0,0.14689874]
[1731219435171,0.3608,79147.0,79142.0,0.14689874]
[1731219436877,0.3608,79147.0,79143.0,0.19048798]
[1731219437072,0.00014434,79154.0,79143.0,0.19048798]
[1731219437278,0.00014434,79154.0,79151.0,0.14689874]
[1731219437582,0.00014434,79154.0,79151.0,0.31061874]
[1731219438081,0.00014434,79154.0,79152.0,0.16372]
[1731219438280,0.00014434,79154.0,79146.0,0.14689874]
[1731219438483,0.00014434,79154.0,79148.0,0.16372]
[1731219441976,0.00014434,79154.0,79144.0,0.14689874]
[1731219442281,0.00014434,79154.0,79149.0,0.16272]
[1731219446286,0.00014434,79154.0,79147.0,0.16272]
[1731219447783,0.00014434,79154.0,79147.0,0.13972]
[1731219449476,0.3608,79149.0,79140.0,0.16272]
[1731219449784,0.3196,79148.0,79141.0,0.18980526]
[1731219450483,0.1538,79147.0,79140.0,0.18980526]
[1731219450681,0.30069874,79147.0,79142.0,0.18865756]
[1731219450884,0.30069874,79147.0,79130.0,0.5878]
[1731219451188,0.3608,79139.0,79130.0,0.58844]
[1731219451388,0.3608,79139.0,79130.0,0.00064]
[1731219451576,0.3608,79139.0,79122.0,0.21339017]
[1731219452180,0.3608,79132.0,79122.0,0.21339017]
[1731219452385,0.3203,79131.0,79122.0,0.21339017]
[1731219452987,0.3203,79131.0,79122.0,0.05067017]
[1731219453185,0.3203,79131.0,79122.0,0.11478844]
[1731219453382,0.3203,79131.0,79122.0,0.05067017]
[1731219454184,0.3608,79125.0,79122.0,0.05067017]
[1731219455692,0.3203,79131.0,79122.0,0.05067017]
[1731219457492,0.3608,79132.0,79126.0,0.14689874]
[1731219457793,0.36269624,79141.0,79131.0,0.14689874]
[1731219457794,0.00189624,79141.0,79131.0,0.14689874]
[1731219457990,0.00189624,79141.0,79132.0,0.16272]
[1731219458185,0.00189624,79141.0,79132.0,0.35306892]
[1731219458384,0.00189624,79141.0,79132.0,0.16272]
[1731219458788,0.00189624,79141.0,79133.0,0.18912587]
[1731219458987,0.00189624,79141.0,79134.0,0.14689874]
[1731219459387,0.00189624,79141.0,79135.0,0.35592587]
[1731219459583,0.3608,79136.0,79132.0,0.06388121]
[1731219460383,0.00189624,79141.0,79132.0,0.06388121]
[1731219460589,0.00189624,79141.0,79128.0,0.14689874]
[1731219460889,0.3608,79143.0,79133.0,0.19008269]
[1731219461094,0.3608,79143.0,79142.0,0.14689874]
[1731219461497,0.3608,79143.0,79142.0,0.29398143]
[1731219461691,0.3608,79159.0,79142.0,0.65478143]
[1731219461886,0.3608,79149.0,79142.0,0.19008269]
[1731219462086,0.14689874,79156.0,79142.0,0.16272]
[1731219462290,0.3608,79159.0,79142.0,0.16272]
[1731219462995,0.3608,79159.0,79142.0,0.13972]
[1731219463696,0.14689874,79150.0,79142.0,0.13972]
[1731219463994,0.14689874,79144.0,79132.0,0.3608]
[1731219464195,0.14689874,79134.0,79122.0,0.05067017]
[1731219464797,0.14689874,79134.0,79125.0,0.3608]
[1731219465101,0.3608,79136.0,79122.0,0.05067017]
[1731219465287,0.3608,79136.0,79123.0,0.16272]
[1731219465491,0.3608,79136.0,79123.0,0.35185519]
[1731219466002,0.3608,79136.0,79123.0,0.51615519]
[1731219466197,0.3608,79136.0,79123.0,0.18913519]
[1731219466394,0.83023874,79143.0,79134.0,0.3608]
[1731219466599,0.82959874,79143.0,79123.0,0.18913519]
[1731219466895,0.89188868,79143.0,79127.0,0.3608]
[1731219467302,0.89188868,79143.0,79128.0,0.18932806]
[1731219467801,0.82959874,79143.0,79128.0,0.18932806]
[1731219468202,0.6827,79143.0,79123.0,0.18867844]
[1731219468398,0.3608,79135.0,79123.0,0.0639972]
[1731219468601,0.3608,79135.0,79123.0,0.16272]
[1731219468902,0.3608,79135.0,79123.0,0.3608]
[1731219469200,0.3608,79135.0,79124.0,0.16272]
[1731219469398,0.3608,79135.0,79123.0,0.3608]
[1731219469603,0.3608,79135.0,79125.0,0.16272]
[1731219470693,0.14689874,79127.0,79122.0,0.05067017]
[1731219470896,0.4731,79126.0,79122.0,0.05067017]
[1731219471503,0.06291809,79135.0,79124.0,0.14689874]
[1731219471819,0.42381927,79152.0,79133.0,0.14689874]
[1731219471999,0.3608,79145.0,79133.0,0.14689874]
[1731219472299,0.3608,79145.0,79129.0,0.36168]
[1731219472300,0.3608,79145.0,79134.0,0.19010459]
[1731219472505,0.3608,79145.0,79129.0,0.3608]
[1731219473007,0.3608,79145.0,79133.0,0.14689874]
[1731219473301,0.3608,79145.0,79134.0,0.19051503]
[1731219473905,0.3608,79145.0,79130.0,0.18937049]
[1731219474108,0.3608,79145.0,79135.0,0.18937049]
[1731219474403,0.3608,79145.0,79129.0,0.3608]
[1731219474404,0.14689874,79150.0,79138.0,0.3608]
[1731219474608,0.3214,79149.0,79136.0,0.18868524]
[1731219474800,0.3214,79149.0,79138.0,0.3608]
[1731219475706,0.3214,79149.0,79139.0,0.18853323]
[1731219475907,0.3214,79149.0,79138.0,0.3608]
[1731219476802,0.3608,79143.0,79131.0,0.17832]
[1731219477005,0.14689874,79144.0,79129.0,0.42294023]
[1731219477203,0.14689874,79138.0,79132.0,0.18853446]
[1731219477506,0.14689874,79138.0,79125.0,0.1629]
[1731219477507,0.3608,79137.0,79125.0,0.1629]
[1731219477702,0.14689874,79138.0,79128.0,0.3608]
[1731219477906,0.14689874,79138.0,79128.0,0.3378]
[1731219478298,0.14689874,79138.0,79127.0,0.3608]
[1731219478507,0.14689874,79138.0,79128.0,0.3608]
[1731219478801,0.14689874,79138.0,79128.0,0.55156357]
[1731219479006,0.50769874,79129.0,79105.0,0.3608]
[1731219479197,0.14689874,79123.0,79105.0,0.3608]
[1731219480008,0.14689874,79123.0,79105.0,0.4251221]
[1731219480205,0.18570381,79123.0,79105.0,0.4251221]
[1731219480809,0.03880507,79123.0,79105.0,0.4251221]
[1731219481507,0.37916,79123.0,79105.0,0.4251221]
[1731219481707,0.37916,79123.0,79105.0,0.3608]
[1731219482013,0.50769874,79114.0,79102.0,0.1648]
[1731219482214,0.86849874,79114.0,79099.0,0.06190535]
[1731219482816,0.86849874,79114.0,79103.0,0.00015582]
[1731219483308,1.54769874,79114.0,79103.0,0.00015582]
[1731219483505,0.50769874,79104.0,79103.0,0.00015582]
[1731219486910,0.56950288,79104.0,79103.0,0.00015582]
[1731219487812,0.3608,79104.0,79103.0,0.00015582]
[1731219488203,0.50769874,79104.0,79103.0,0.00015582]
[1731219491712,0.50769874,79104.0,79084.0,0.33795582]
[1731219491918,0.3608,79093.0,79084.0,0.40146904]
[1731219492916,0.3608,79093.0,79084.0,0.37862461]
[1731219493812,0.3608,79093.0,79088.0,0.00015391]
[1731219496609,0.3608,79093.0,79088.0,0.05073048]
[1731219497012,0.14689874,79092.0,79088.0,0.05073048]
[1731219499615,0.1591,79091.0,79088.0,0.05073048]
[1731219500011,0.1591,79091.0,79088.0,0.02773048]
[1731219501621,0.1555,79090.0,79088.0,0.02773048]
[1731219503221,0.3608,79089.0,79088.0,0.02773048]
[1731219508023,0.3608,79089.0,79088.0,0.00473048]
[1731219508426,0.3608,79089.0,79088.0,0.05530705]
[1731219509124,0.50769874,79089.0,79088.0,0.05530705]
[1731219514529,0.50769874,79089.0,79088.0,0.03230705]
[1731219517725,0.52669875,79089.0,79088.0,0.03230705]
[1731219518327,0.88749875,79089.0,79088.0,0.03230705]
[1731219519931,0.7216,79089.0,79088.0,0.03230705]
[1731219520132,0.3608,79089.0,79088.0,0.03230705]
[1731219520334,0.50769874,79089.0,79088.0,0.03230705]
[1731219522837,0.50769874,79089.0,79088.0,0.00930705]
[1731219524550,0.86849874,79089.0,79088.0,0.05988362]
[1731219527636,0.86849874,79089.0,79088.0,0.04138362]
[1731219530142,0.86849874,79089.0,79088.0,0.01838362]
[1731219530340,0.3608,79102.0,79088.0,0.54460236]
[1731219530647,0.3608,79102.0,79089.0,0.4752]
[1731219530949,0.14702385,79113.0,79100.0,0.3608]
[1731219531248,0.14689874,79101.0,79100.0,0.3608]
[1731219531646,0.05580116,79109.0,79100.0,0.3608]
[1731219531839,0.05580116,79109.0,79103.0,0.3608]
[1731219531840,0.14689874,79108.0,79103.0,0.3608]
[1731219536650,0.14689874,79108.0,79099.0,0.05159733]
[1731219536852,0.14689874,79108.0,79094.0,0.52364]
[1731219537052,0.14689874,79108.0,79094.0,0.52288]
[1731219537243,0.14689874,79108.0,79094.0,0.57706582]
[1731219537440,0.14689874,79108.0,79094.0,0.41498582]
[1731219537650,0.14689874,79108.0,79095.0,0.16208]
[1731219537841,0.14689874,79108.0,79095.0,0.13908]
[1731219538452,0.05404012,79113.0,79101.0,0.3608]
[1731219539248,0.05404012,79113.0,79110.0,0.3608]
[1731219539549,0.05404012,79113.0,79111.0,0.1387]